[Event "2nd Serbia Open Masters 2022"]
[Site "Novi Sad"]
[Date "2022.07.02"]
[Round "5.9"]
[White "Demchenko, Anton"]
[Black "Neelash Saha"]
[Result "1/2-1/2"]
[ECO "B50"]
[WhiteElo "2654"]
[BlackElo "2439"]
[Annotator "TA"]
[PlyCount "108"]
[EventDate "2022.06.28"]
[EventType "swiss"]
[EventCountry "SRB"]
[SourceTitle "playchess.com"]
[Source "ChessBase"]
[SourceQuality "1"]
[TimeControl "40/5400+30:900+30"]

{[%evp 9,108,13,16,0,-2,-7,0,0,-11,-3,0,0,6,-14,2,0,0,0,6,-8,-16,-13,-16,-25,3,-20,-4,-18,0,0,0,0,2,0,10,5,7,11,22,16,7,10,62,55,60,54,63,27,58,54,72,71,70,45,164,0,0,6,6,0,0,0,5,-9,-9,-9,-9,-9,-9,-9,-9,-23,-9,-9,-9,-9,-9,-16,-16,-16,-16,-16,-16,-154,-161,-161,-118,-118,-118,-121,-121,-122,0,0,8,8,82,82,82,2,82]} 1. e4 {[%emt 0:00:05]} c5 {[%emt 0:00:48]} 2. Nf3 {[%emt 0:00:21]} d6 {[%emt 0:00:05]} 3. Nc3 {[%emt 0:02:45]} Nf6 {[%emt 0:00:33][%cal Bg8f6,Bf6e8,Be8d6,Bd6c4][%mdl 32]} 4. g3 {[%emt 0:00:34]} g6 {[%emt 0:01:31]} 5. Bg2 {[%emt 0:00:12]} Bg7 {[%emt 0:00:05]} 6. O-O {[%emt 0:00:09] B50: Sicilian: 2...d6, Miscellaneous.} O-O {[%emt 0:00:41]} 7. e5 {[%emt 0:00:47]} Ne8 {[%emt 0:03:37]} 8. exd6 {[%emt 0:02:05] [#]} Nxd6 $146 {[%emt 0:00:06]} ({Predecessor:} 8... e5 9. d3 Nxd6 10. Be3 Nd7 11. a4 h6 12. Ne4 Nxe4 13. dxe4 Qc7 14. Qd5 Re8 {1-0 (96) Lobron,E (2575)-Polgar,J (2630) Biel 1993}) 9. d4 {[%emt 0:00:54]} cxd4 {[%emt 0:05:54]} 10. Nxd4 {[%emt 0:00:06]} Nc4 {[%emt 0:01:24]} 11. Nce2 {[%emt 0:10:11][%cal Bc3e2,Be2d4,Bd4c2,Bc2b4][%mdl 32]} Nc6 {[%emt 0:02:10]} 12. c3 {[%emt 0:01:41]} Bd7 {[%emt 0:01:38]} 13. Re1 {[%emt 0:31:17]} Qc8 {[%emt 0:06:03]} 14. Nxc6 {[%emt 0:02:28]} Bxc6 {[%emt 0:00:28]} 15. Bxc6 {[%emt 0:00:05]} Qxc6 {[%emt 0:01:26]} 16. Nd4 {[%emt 0:00:05]} Qd5 {[%emt 0:05:50]} 17. Qe2 {[%emt 0:07:56]} Rfe8 {[%emt 0:09:28]} 18. Rd1 {[%emt 0:03:28]} Qc5 {[%emt 0:02:31]} 19. b3 {[%emt 0:03:33]} Nd6 {[%emt 0:00:41]} 20. Bb2 {[%emt 0:00:24]} e5 {[%emt 0:06:49]} 21. Nc2 {[%emt 0:00:28]} Nf5 {[%emt 0:03:11]} 22. Qe4 {[%emt 0:00:57]} Qc7 {[%emt 0:02:24]} 23. Nb4 {[%emt 0:01:02]} Ne7 {[%emt 0:02:10]} 24. c4 {[%emt 0:01:34]} Rad8 {[%emt 0:01:18]} 25. Rac1 {[%emt 0:04:03]} a5 {[%emt 0:07:35]} (25... f5 $11 26. Qe3 Qa5) 26. Nd5 $14 {[%emt 0:01:01] White is more active.} Nxd5 {[%emt 0:01:11]} 27. cxd5 {[%emt 0:00:16]} Qb6 {[%emt 0:00:16]} 28. Rc4 {[%emt 0:08:01]} Rd7 {[%emt 0:03:37]} 29. Bc3 {[%emt 0:02:18]} f5 {[%emt 0:17:54]} 30. Qe1 {[%emt 0:00:16]} Qb5 {[%emt 0:00:29]} 31. d6 {[%emt 0:05:17] And now Rc7 would win.} ({Reject} 31. Bxa5 Rxd5 32. Bc3 Bf6 $11) (31. Qd2 $5 {[%cal Rd5d6]}) 31... Re6 {[%emt 0:02:25]} (31... Bf8 $14) 32. Bxa5 $2 {[%emt 0:09:33]} ({Resist} 32. Rc8+ Bf8 $16) (32. a4 $1 $18 Qxb3 33. Rc7) 32... Rexd6 $11 {[%emt 0:00:23]} 33. Rxd6 {[%emt 0:00:06]} Rxd6 {[%emt 0:00:03]} 34. Rc8+ {[%emt 0:01:43]} Kf7 {[%emt 0:00:06]} 35. Rc7+ {[%emt 0:00:04]} Rd7 {[%emt 0:00:05]} 36. Qb4 {[%emt 0:00:59]} Qxb4 {[%emt 0:03:10]} 37. Rxd7+ {[%emt 0:00:01] [#]} Qe7 $1 {[%emt 0:00:06]} 38. Rxe7+ {[%emt 0:00:03]} Kxe7 {[%emt 0:00:04][%mdl 4096] Endgame KB-KB} 39. Bc3 {[%emt 0:00:03]} Bf6 {[%emt 0:00:08]} 40. a4 {[%emt 0:00:00]} Ke6 {[%emt 0:00:00]} 41. f3 {[%emt 0:06:50]} Be7 {[%emt 0:00:47]} 42. Kf2 {[%emt 0:00:16]} Kd5 {[%emt 0:00:48]} 43. Ke2 {[%emt 0:00:05]} h5 {[%emt 0:01:27]} 44. h3 {[%emt 0:00:10]} e4 {[%emt 0:00:55]} 45. Be1 {[%emt 0:00:47]} g5 {[%emt 0:01:16]} 46. Bd2 {[%emt 0:04:34] [#]} (46. g4 $11) 46... exf3+ $1 $17 {[%emt 0:00:58]} 47. Kxf3 {[%emt 0:00:04]} g4+ {[%emt 0:00:04]} 48. hxg4 {[%emt 0:00:09]} fxg4+ {[%emt 0:00:23]} 49. Kf4 {[%emt 0:01:28]} Bd6+ {[%emt 0:00:19]} 50. Kg5 {[%emt 0:00:05]} Bxg3 {[%emt 0:00:19]} (50... Ke4 $17 51. Be1 (51. Kxh5 $2 Kf3 $19) 51... Kf3) 51. Kxh5 $11 {[%emt 0:00:04]} b5 {[%emt 0:01:10]} 52. a5 {[%emt 0:00:49] aiming for Be3.} Kc6 {[%emt 0:00:14]} (52... Bd6 $1 $11 53. Kxg4 b4) 53. Kxg4 $16 {[%emt 0:00:05]} Bc7 {[%emt 0:00:03][%cal Ob5b4] [#]} 54. Kf5 {[%emt 0:00:21]} ({Better is} 54. b4 $1 $16) 54... Kb7 {[%emt 0:00:11] Weighted Error Value: White=0.17 (very precise) /Black=0.16 (very precise)} (54... b4 $1 $11 {keeps the balance.}) 1/2-1/2

[Event "2nd Serbia Open Masters 2022"]
[Site "Novi Sad"]
[Date "2022.07.02"]
[Round "5.10"]
[White "Agmanov, Zhandos"]
[Black "Piorun, Kacper"]
[Result "1/2-1/2"]
[ECO "C07"]
[WhiteElo "2420"]
[BlackElo "2635"]
[Annotator "TA"]
[PlyCount "62"]
[EventDate "2022.06.28"]
[EventType "swiss"]
[EventCountry "SRB"]
[SourceTitle "playchess.com"]
[Source "ChessBase"]
[SourceQuality "1"]
[TimeControl "40/5400+30:900+30"]

{[%evp 10,62,20,20,18,13,14,14,11,22,25,18,15,31,24,0,0,0,0,0,0,0,10,0,0,0,0,0,0,-16,-16,-14,-11,-18,0,0,0,0,0,0,0,0,17,0,0,0,0,0,0,0,0,0,0,-12,-8]} 1. e4 {[%emt 0:00:56]} e6 {[%emt 0:00:47]} 2. d4 {[%emt 0:00:39]} d5 {[%emt 0:00:10]} 3. Nd2 {[%emt 0:00:47]} c5 {[%emt 0:00:05]} 4. exd5 {[%emt 0:00:58]} Qxd5 {[%emt 0:00:06]} 5. Ngf3 {[%emt 0:00:32]} cxd4 {[%emt 0:00:07]} 6. Bc4 {[%emt 0:00:08][%cal Bf1c4,Bc4b3,Bb3c2,Bc2e4][%mdl 32]} Qd7 {[%emt 0:00:07] C07: French Tarrasch: 3...c5, 4 Ngf3 and 4 exd5 Qxd5.} 7. O-O {[%emt 0:00:41]} Nc6 {[%emt 0:00:29]} 8. Nb3 {[%emt 0:00:09][%cal Rb3d4]} a6 {[%emt 0:00:06]} 9. Nbxd4 {[%emt 0:04:53]} Nxd4 {[%emt 0:00:06]} 10. Nxd4 {[%emt 0:00:37]} Qc7 {[%emt 0:00:23] Against Bf4} 11. Bb3 {[%emt 0:06:01]} Bd6 {[%emt 0:00:07]} 12. h3 {[%emt 0:01:18]} Ne7 {[%emt 0:00:08] The position is equal.} 13. c3 {[%emt 0:13:04]} O-O {[%emt 0:00:43]} 14. Qh5 {[%emt 0:00:45]} b5 {[%emt 0:08:51]} 15. Bc2 {[%emt 0:04:59][%csl Gc2][%cal Rh5h7] [#]} g6 $146 {[%emt 0:04:46]} ({Predecessor:} 15... Ng6 16. Nf3 Qc5 17. Ng5 h6 18. Qf3 Rb8 19. Ne4 Qc7 20. Nxd6 Qxd6 21. Be3 Bb7 {0-1 (34) Hapala,E (2075)-Wu,M (1892) Graz 2017}) 16. Qh4 {[%emt 0:07:04]} Bb7 {[%emt 0:01:58]} 17. Bh6 {[%emt 0:03:36]} Rfe8 {[%emt 0:00:05]} ({Much less strong is} 17... Bh2+ 18. Kh1 Bd6 19. f4 $16 (19. Bxf8 Rxf8 20. Rad1 Nd5 $16) (19. Qf6 Be5 $11)) 18. Rfe1 $1 {[%emt 0:02:41] Threatening mate with Qf6.} ({Reject} 18. Qf6 Bh2+ 19. Kh1 Be5 $17) 18... Nd5 {[%emt 0:06:53] Against Qf6} 19. Be4 {[%emt 0:04:52]} Be7 {[%emt 0:18:09]} 20. Bg5 {[%emt 0:01:53]} Bxg5 {[%emt 0:00:10]} 21. Qxg5 {[%emt 0:00:04]} f6 {[%emt 0:00:11]} (21... Kg7 {seems wilder.} 22. Rad1 Rad8 23. Bf3 h6) 22. Qh4 {[%emt 0:05:48]} e5 {[%emt 0:06:30]} 23. Nc2 {[%emt 0:08:23][%cal Bd4c2,Bc2e3,Be3d5,Bd5b4,Bb4c6][%mdl 32]} f5 {[%emt 0:00:12]} 24. Bxd5+ {[%emt 0:01:09]} Bxd5 {[%emt 0:00:02]} 25. Ne3 {[%emt 0:00:15]} Bf7 {[%emt 0:09:48]} 26. Red1 {[%emt 0:07:47]} Qe7 {[%emt 0:01:10]} 27. Qxe7 {[%emt 0:00:49]} Rxe7 {[%emt 0:00:02]} 28. Nd5 {[%emt 0:02:42]} Rb7 {[%emt 0:01:08]} 29. Nb4 {[%emt 0:01:12]} a5 {[%emt 0:06:04]} 30. Nc6 {[%emt 0:00:20]} e4 {[%emt 0:00:03]} 31. Nd8 {[%emt 0:00:15]} Rc7 {[%emt 0:00:25] An interesting draw.  Weighted Error Value: White=0.03 (flawless) /Black=0.02 (flawless)} 1/2-1/2

[Event "2nd Serbia Open Masters 2022"]
[Site "Novi Sad"]
[Date "2022.07.02"]
[Round "5.11"]
[White "Bernadskiy, Vitaliy"]
[Black "Nogerbek, Kazybek"]
[Result "1/2-1/2"]
[ECO "B36"]
[WhiteElo "2636"]
[BlackElo "2424"]
[Annotator "TA"]
[PlyCount "84"]
[EventDate "2022.06.28"]
[EventType "swiss"]
[EventCountry "SRB"]
[SourceTitle "playchess.com"]
[Source "ChessBase"]
[SourceQuality "1"]
[TimeControl "40/5400+30:900+30"]

{[%evp 15,84,0,0,0,0,-7,0,-8,4,-1,-7,-10,-10,-13,0,0,0,0,14,0,0,0,12,5,7,7,6,0,4,1,1,0,8,8,9,0,13,9,9,9,9,10,11,11,11,0,9,0,0,0,0,0,0,0,0,0,0,0,0,-13,-8,-8,-8,-8,0,0,0,-9,0,0,0]} 1. e4 {[%emt 0:00:02]} c5 {[%emt 0:00:24]} 2. Nf3 {[%emt 0:00:35]} Nc6 {[%emt 0:00:14]} 3. d4 {[%emt 0:00:29]} cxd4 {[%emt 0:00:10]} 4. Nxd4 {[%emt 0:00:04]} g6 {[%emt 0:00:21]} 5. c4 {[%emt 0:00:38]} Nf6 {[%emt 0:00:19]} 6. Nc3 {[%emt 0:00:18]} Nxd4 {[%emt 0:00:16]} 7. Qxd4 {[%emt 0:00:07]} d6 {[%emt 0:00:13]} 8. e5 {[%emt 0:03:59]} dxe5 {[%emt 0:00:58] The position is equal.} 9. Qxe5 {[%emt 0:00:13] B36: Sicilian: Maroczy Bind: Gurgenidze System.} Bg7 {[%emt 0:02:06]} 10. Qb5+ {[%emt 0:03:01]} Qd7 {[%emt 0:01:46]} 11. Be2 {[%emt 0:03:34]} O-O {[%emt 0:00:39]} 12. O-O {[%emt 0:01:10] [#]} Qxb5 $146 {[%emt 0:02:20]} ({Predecessor:} 12... Qc7 13. Bf3 a6 14. Qb3 Ng4 15. Bxg4 Bxg4 16. Nd5 Qd6 17. f3 Be6 18. Bf4 Qd7 {½-½ (30) Jenc,M (1888)-Hurdzan,T (1773) Czech Republic 2012}) 13. cxb5 {[%emt 0:01:01]} Bg4 {[%emt 0:00:31]} 14. Bc4 {[%emt 0:12:30]} Rac8 {[%emt 0:02:17]} 15. Bb3 {[%emt 0:02:55]} Rfd8 {[%emt 0:01:49]} 16. Re1 {[%emt 0:01:43]} e6 {[%emt 0:03:15]} 17. h3 {[%emt 0:08:33]} Bf5 {[%emt 0:00:23][%cal Bg4f5,Bf5d3,Bd3b5][%mdl 32]} 18. Be3 {[%emt 0:01:07]} a6 {[%emt 0:03:08]} 19. bxa6 {[%emt 0:02:50]} bxa6 {[%emt 0:00:09]} 20. g4 {[%emt 0:00:49]} Bd3 {[%emt 0:00:12]} 21. Rad1 {[%emt 0:00:06]} Bb5 {[%emt 0:04:07]} 22. f3 {[%emt 0:18:04]} Bc6 {[%emt 0:00:46]} 23. Kf2 {[%emt 0:00:08]} Nd5 {[%emt 0:04:46]} 24. Nxd5 {[%emt 0:00:54]} Bxd5 {[%emt 0:00:10]} 25. Bg5 {[%emt 0:01:15]} Rd7 {[%emt 0:00:46]} 26. Bxd5 {[%emt 0:05:05]} Rxd5 {[%emt 0:01:13]} 27. Rxd5 {[%emt 0:00:37]} exd5 $11 {[%emt 0:00:08][%mdl 4096] Endgame KRB-KRB} 28. b3 {[%emt 0:01:35]} Bd4+ {[%emt 0:05:54]} 29. Be3 {[%emt 0:01:38]} Bxe3+ {[%emt 0:02:18]} 30. Rxe3 {[%emt 0:06:36] KR-KR} Kf8 {[%emt 0:00:18]} 31. Re2 {[%emt 0:04:09]} Rc3 {[%emt 0:01:28]} 32. Kg3 {[%emt 0:02:16]} a5 {[%emt 0:05:49]} 33. Rd2 {[%emt 0:02:04]} Rc5 {[%emt 0:02:58]} 34. Kf4 {[%emt 0:00:50]} f6 {[%emt 0:01:55]} 35. Ke3 {[%emt 0:03:51]} Ke7 {[%emt 0:00:46]} ({Don't play} 35... Rc3+ 36. Rd3 Rc5 37. Kd4 $16) 36. Re2 {[%emt 0:00:15] [#] And now Kd4+ would win.} Kd6 {[%emt 0:01:12]} 37. Kd4 {[%emt 0:03:20][%cal Oe2e6] Prevents Rc3. Threatens to win with Re6+!} Rc1 {[%emt 0:00:47]} 38. Re8 {[%emt 0:00:03]} Rd1+ {[%emt 0:01:04]} 39. Kc3 {[%emt 0:11:36]} Rf1 {[%emt 0:00:18]} 40. Kd4 {[%emt 0:00:00]} Rd1+ {[%emt 0:00:00]} 41. Kc3 {[%emt 0:00:00]} Rf1 {[%emt 0:00:37]} 42. Kd4 {[%emt 0:00:00]} Rd1+ {[%emt 0:00:21] Not much happened in this game.  Weighted Error Value: White=0.02 (flawless) /Black=0.03 (flawless)} 1/2-1/2

[Event "2nd Serbia Open Masters 2022"]
[Site "Novi Sad"]
[Date "2022.07.02"]
[Round "5.12"]
[White "Samant Aditya S"]
[Black "Puranik, Abhimanyu"]
[Result "0-1"]
[ECO "C07"]
[WhiteElo "2433"]
[BlackElo "2608"]
[Annotator "TA"]
[PlyCount "58"]
[EventDate "2022.06.28"]
[EventType "swiss"]
[EventCountry "SRB"]
[SourceTitle "playchess.com"]
[Source "ChessBase"]
[SourceQuality "1"]
[TimeControl "40/5400+30:900+30"]

{[%evp 15,58,20,18,17,14,2,27,0,0,0,0,-3,22,32,23,-56,-27,-15,-24,-104,-89,-165,-175,-162,-158,-131,-132,-144,-114,-355,-317,-333,-306,-287,-200,-193,-196,-172,-174,-187,-177,-184,-172,-29990,-29991]} 1. e4 {[%emt 0:00:03] ChessBase II} e6 {[%emt 0:03:08]} 2. d4 {[%emt 0:00:10]} d5 {[%emt 0:00:07]} 3. Nd2 {[%emt 0:00:06]} c5 {[%emt 0:00:30]} 4. Ngf3 {[%emt 0:00:21]} cxd4 {[%emt 0:00:07]} 5. Nxd4 {[%emt 0:00:05]} Nc6 {[%emt 0:00:20]} 6. Bb5 {[%emt 0:00:21]} Bd7 {[%emt 0:00:04]} 7. Nxc6 {[%emt 0:00:13]} bxc6 {[%emt 0:00:04]} 8. Bd3 {[%emt 0:00:06]} Qc7 {[%emt 0:02:21]} 9. Qe2 {[%emt 0:01:29] C07: French Tarrasch: 3...c5, 4 Ngf3 and 4 exd5 Qxd5.} Ne7 {[%emt 0:00:51]} 10. Nf3 {[%emt 0:12:36] 10.0-0 injects fresh life into this line.} Ng6 {[%emt 0:02:33]} 11. e5 {[%emt 0:05:14] Against Bd6. White has an edge.} Be7 {[%emt 0:09:11] was the old line (11...c5).} 12. O-O {[%emt 0:14:45]} c5 {[%emt 0:00:35]} 13. c3 {[%emt 0:11:20]} f5 {[%emt 0:05:46]} 14. exf6 $1 {[%emt 0:09:37]} gxf6 {[%emt 0:01:56] [#]} 15. Nh4 $146 {[%emt 0:03:28]} ({Predecessor:} 15. Re1 e5 16. Nh4 e4 17. Qh5 Qe5 18. Be2 Qxh5 19. Bxh5 Rg8 20. g3 O-O-O 21. Bxg6 hxg6 {½-½ (46) Naiditsch,A (2697)-Flom,G (2501) Brest 2018 EXT 2019 [ChessBase II]}) 15... O-O-O {[%emt 0:03:56]} (15... f5 $5 {[%cal Rg6h4]} 16. Nxg6 hxg6 $15) 16. Nxg6 {[%emt 0:11:08]} hxg6 {[%emt 0:00:44][%csl Gh8][%cal Rc7h2,Bh7g6,Bg6g5][%mdl 32]} 17. f4 {[%emt 0:00:02]} (17. h3 $11) 17... g5 {[%emt 0:07:50]} 18. c4 {[%emt 0:02:13]} (18. Bf5 $17 {was called for.}) 18... Bd6 $19 {[%emt 0:05:24][%cal Rg5f4,Be7d6,Bd6c5,Bc5b6][%mdl 32]} 19. cxd5 {[%emt 0:04:35]} exd5 {[%emt 0:01:49] ...c4 is the strong threat.} 20. Bb5 {[%emt 0:01:19]} c4 {[%emt 0:08:10]} 21. Bxd7+ {[%emt 0:00:19]} Rxd7 {[%emt 0:00:05][%cal Bd8d7,Bd7h7,Bh7h2][%mdl 32]} ({Inferior is} 21... Kxd7 22. Qf3 $15 (22. Re1 $2 Rde8 $19)) 22. Qf3 $2 {[%emt 0:09:03] Loses the game.} (22. h3 $17) 22... Bc5+ $1 {[%emt 0:05:18]} 23. Be3 {[%emt 0:08:13]} g4 $1 {[%emt 0:00:23]} 24. Qg3 {[%emt 0:00:01]} Rdh7 {[%emt 0:21:44]} 25. Rad1 {[%emt 0:00:54]} Rxh2 {[%emt 0:08:48] ( -> ...Bxe3+)} 26. Rxd5 {[%emt 0:00:08] [#]} Bb6 {[%emt 0:00:07]} 27. Qxg4+ {[%emt 0:03:03]} Kb8 {[%emt 0:00:09] Dancing on a razor blade.} 28. Rb5 {[%emt 0:02:43] [#]} Qc6 $1 {[%emt 0:05:00][%mdl 1024] Black has strong compensation.} 29. a4 {[%emt 0:00:33] [#]} (29. Rxb6+ $19 axb6 30. Re1) 29... Qxb5 $3 {[%emt 0:00:13][%mdl 512] Weighted Error Value: White=0.45/Black=0.09 (flawless)} 0-1

[Event "2nd Serbia Open Masters 2022"]
[Site "Novi Sad"]
[Date "2022.07.02"]
[Round "5.13"]
[White "Kadric, Denis"]
[Black "Harikrishnan.A.Ra"]
[Result "1/2-1/2"]
[ECO "C50"]
[WhiteElo "2576"]
[BlackElo "2396"]
[Annotator "TA"]
[PlyCount "33"]
[EventDate "2022.06.28"]
[EventType "swiss"]
[EventCountry "SRB"]
[SourceTitle "playchess.com"]
[Source "ChessBase"]
[SourceQuality "1"]
[TimeControl "40/5400+30:900+30"]

{[%evp 9,33,19,30,16,15,18,14,6,37,31,34,18,22,20,9,-12,-7,-29,-27,-15,-19,-19,-22,-30,-8,-17]} 1. e4 {[%emt 0:08:02]} e5 {[%emt 0:00:18]} 2. Nf3 {[%emt 0:00:05]} Nc6 {[%emt 0:00:04]} 3. Bc4 {[%emt 0:00:04]} Bc5 {[%emt 0:00:06]} 4. O-O {[%emt 0:00:08]} Nf6 {[%emt 0:00:04]} 5. d3 {[%emt 0:00:02]} O-O {[%emt 0:00:10]} 6. h3 {[%emt 0:00:07] C50: Hungarian Defence and Giuoco Pianissimo.} h6 {[%emt 0:03:27]} 7. Re1 {[%emt 0:00:31]} Re8 {[%emt 0:02:28]} 8. c3 {[%emt 0:00:16]} d6 {[%emt 0:02:06]} 9. Nbd2 {[%emt 0:00:10][%cal Bb1d2,Bd2f1,Bf1g3][%mdl 32]} Bb6 {[%emt 0:05:49]} 10. Nf1 {[%emt 0:07:19]} Ne7 {[%emt 0:01:31]} 11. Ng3 {[%emt 0:01:20]} Ng6 {[%emt 0:00:54]} 12. d4 {[%emt 0:08:27] [#]} exd4 $146 {[%emt 0:10:42]} ({Predecessor:} 12... c6 13. dxe5 dxe5 14. Qxd8 Rxd8 15. a4 a6 16. b3 Ba7 17. Ba3 Rd7 18. Rad1 b5 19. Rxd7 Bxd7 20. axb5 cxb5 {1-0 (55) Mukhtarkhan,A (1141)-Ramos Redondo,X Salobrena 2020}) 13. cxd4 {[%emt 0:00:03]} d5 {[%emt 0:00:19]} 14. exd5 {[%emt 0:02:14]} Rxe1+ {[%emt 0:00:39]} 15. Qxe1 {[%emt 0:00:01]} Nxd5 {[%emt 0:00:41]} 16. Bd3 {[%emt 0:33:12]} c6 {[%emt 0:04:13]} 17. Bd2 {[%emt 0:02:25] Weighted Error Value: White=0.07 (flawless) /Black=0.05 (flawless)} 1/2-1/2

[Event "2nd Serbia Open Masters 2022"]
[Site "Novi Sad"]
[Date "2022.07.02"]
[Round "5.14"]
[White "Babazada, Khazar"]
[Black "Ivanisevic, Ivan"]
[Result "1-0"]
[ECO "C70"]
[WhiteElo "2431"]
[BlackElo "2550"]
[Annotator "TA"]
[PlyCount "81"]
[EventDate "2022.06.28"]
[EventType "swiss"]
[EventCountry "SRB"]
[SourceTitle "playchess.com"]
[Source "ChessBase"]
[SourceQuality "1"]
[TimeControl "40/5400+30:900+30"]

{[%evp 9,81,24,45,26,43,35,36,18,28,19,28,29,21,35,32,32,25,36,31,29,24,24,8,5,56,24,96,0,0,0,0,-25,0,11,63,52,61,-22,-25,-41,-45,-24,-31,-23,0,0,0,0,0,0,0,-20,0,-36,-11,-18,0,0,0,-166,0,-10,0,0,0,0,0,0,0,0,0,0,29994,29995]} 1. e4 {[%emt 0:00:02] ChessBase II} e5 {[%emt 0:01:18]} 2. Nf3 {[%emt 0:00:15]} Nc6 {[%emt 0:00:06]} 3. Bb5 {[%emt 0:00:11]} a6 {[%emt 0:00:06]} 4. Ba4 {[%emt 0:00:08]} Bc5 {[%emt 0:00:07]} 5. c3 {[%emt 0:00:08]} Nge7 {[%emt 0:00:06]} 6. d4 {[%emt 0:00:07] C70: Ruy Lopez: 3...a6 4 Ba4, Norwegian and Delayed Schliemann.} exd4 {[%emt 0:00:04]} 7. cxd4 {[%emt 0:00:05]} Bb4+ {[%emt 0:00:07]} 8. Nc3 {[%emt 0:00:06] White is slightly better.} d5 {[%emt 0:00:20]} 9. exd5 {[%emt 0:00:05]} Qxd5 {[%emt 0:00:38]} 10. O-O {[%emt 0:00:06]} Bxc3 {[%emt 0:00:07]} 11. bxc3 {[%emt 0:00:05] aiming for Ba3.} Bg4 $1 {[%emt 0:00:08]} 12. Bxc6+ {[%emt 0:00:12]} Qxc6 {[%emt 0:01:58]} 13. Re1 {[%emt 0:00:06]} Bxf3 {[%emt 0:00:08]} 14. gxf3 {[%emt 0:00:08]} Kd7 {[%emt 0:00:16] [#]} 15. d5 $146 {[%emt 0:00:15]} ({Predecessor:} 15. Ba3 Ng6 16. Qb3 Qxf3 17. Re3 Qf5 18. Qxb7 Rhe8 19. Rf3 Qe6 20. d5 Qg4+ 21. Rg3 {1-0 (32) Janata,M-Nilsson,N Marianske Lazne 1962 EXT 2000 [ChessBase II]}) 15... Qg6+ {[%emt 0:01:44]} 16. Kh1 {[%emt 0:00:17][%cal Oa1b1]} Nf5 {[%emt 0:08:03]} (16... Rae8 $11) 17. Rg1 {[%emt 0:17:13]} (17. c4 $5 {[%cal Rc4c5]}) 17... Qh5 {[%emt 0:01:55]} (17... Qb6 $11 {remains equal.}) 18. Qa4+ {[%emt 0:11:28]} ({Better is} 18. Rb1 $16) 18... b5 $11 {[%emt 0:03:43]} 19. Qf4 {[%emt 0:00:25] Rg5 is the strong threat.} Rae8 {[%emt 0:05:40]} 20. Ba3 {[%emt 0:01:23]} h6 {[%emt 0:11:39] Inhibits Rg5.} 21. c4 {[%emt 0:11:36] Threatens to win with cxb5.} Re2 {[%emt 0:02:15]} (21... Re5 $11) 22. cxb5 $14 {[%emt 0:09:04]} Rxf2 {[%emt 0:02:14]} 23. Raf1 {[%emt 0:11:27]} (23. Bc5 $14 Qxf3+ 24. Qxf3 Rxf3 25. bxa6) 23... Rxf1 $11 {[%emt 0:07:35]} 24. Rxf1 {[%emt 0:00:46] Chess con chili.} axb5 {[%emt 0:02:03]} ({Don't do} 24... Qg5 25. Qa4 Qh4 26. Bb4 (26. Qxh4 Nxh4 27. Re1 Nf5 $15) 26... axb5 27. Qxb5+ Kd8 28. Be1 $14) 25. Qc1 {[%emt 0:06:02] White wants to mate with Qc6+.} Qg6 {[%emt 0:02:00] Inhibits Qc6+.} 26. Re1 {[%emt 0:04:02]} Qa6 $40 {[%emt 0:02:53][%mdl 128] White needs to defend precisely.} 27. Bb4 {[%emt 0:02:00]} Rd8 {[%emt 0:02:51]} 28. Qc2 $1 {[%emt 0:02:27]} g6 {[%emt 0:00:14]} 29. Rc1 {[%emt 0:01:05]} Qb7 {[%emt 0:06:00]} 30. Ba5 {[%emt 0:04:57]} Rc8 {[%emt 0:03:39]} 31. Qc5 {[%emt 0:00:28]} Nd6 {[%emt 0:02:46]} (31... h5 $5 {[%cal Rc8a8]}) 32. Bb4 {[%emt 0:03:28]} Re8 {[%emt 0:04:07]} 33. Qd4 {[%emt 0:01:25] Against Re5} Nf5 {[%emt 0:02:53]} 34. Qd2 {[%emt 0:00:28] [#]} (34. Qf4 $1 $11) 34... Ne3 $2 {[%emt 0:04:26]} (34... Re5 $1 $19 35. Ba5 Qxd5 36. Qxd5+ Rxd5 37. Rxc7+ Ke8 38. Rc8+ Ke7) 35. Rc5 {[%emt 0:01:19]} Qa7 {[%emt 0:06:34]} 36. Qc3 {[%emt 0:01:57] Strongly threatening Qf6.} Nc4 {[%emt 0:00:59]} (36... Qxa2 $2 {gets mated.} 37. Rxc7+ Kd8 38. Rc8+ Kd7 39. Qc7#) (36... Kc8 $2 37. d6 Nc4 38. Rxc7+ Qxc7 39. dxc7 $18) 37. Qf6 {[%emt 0:00:17]} Re1+ {[%emt 0:04:57]} 38. Kg2 {[%emt 0:00:36]} Nd6 {[%emt 0:02:03]} 39. Kh3 {[%emt 0:05:59] And now Rc6 would win.} Re2 {[%emt 0:08:53]} 40. Rc6 {[%emt 0:00:00][%cal Rb4d6]} Qxa2 $2 {[%emt 0:00:00][%mdl 8192] [#]} (40... Rxh2+ $11 41. Kxh2 Qf2+ 42. Kh1 (42. Kh3 Qf1+ 43. Kh2 Qf2+ 44. Kh3 Qf1+ 45. Kh2 Qf2+ $11) 42... Qf1+ 43. Kh2 Qf2+ 44. Kh3 Qf1+ 45. Kh2 Qf2+) 41. Bxd6 {[%emt 0:02:38] Weighted Error Value: White=0.19 (very precise) /Black=0.40} 1-0